[Event "93rd German Championship 2022"]
[Site "Magdeburg"]
[Date "2022.08.16"]
[Round "3.2"]
[White "Schulz, Lukas"]
[Black "Pajeken, Jakob Leon"]
[Result "1-0"]
[ECO "C34"]
[WhiteElo "2272"]
[BlackElo "2434"]
[Annotator "TA"]
[PlyCount "43"]
[EventDate "2022.08.14"]
[EventType "swiss"]
[EventCountry "GER"]
[SourceTitle "playchess.com"]
[Source "ChessBase"]
[SourceQuality "1"]
[TimeControl "40/5400+30:1800+30"]

{[%evp 9,42,-47,26,-16,-23,-20,0,0,0,0,2,0,72,108,145,-59,266,259,266,244,763,765,1005,993,975,960,1557,1507,1751,1765,29997,29998,29998,29999,29999]} 1. e4 {[%emt 0:00:02]} e5 {[%emt 0:00:03]} 2. f4 {[%emt 0:00:08]} exf4 {[%emt 0:00:03]} 3. Nf3 {[%emt 0:00:07]} Nf6 {[%emt 0:00:04]} 4. e5 {[%emt 0:00:43]} Nh5 {[%emt 0:00:04]} 5. Qe2 {[%emt 0:00:29]} g5 {[%emt 0:02:30]} (5... Be7 $15) 6. Nc3 {[%emt 0:10:04][%mdl 1024] Strongly threatening Nd5. White has compensation. C34: King's Gambit Accepted: 3 Nf3: 3...Nf6 and 3...d6.} g4 {[%emt 0:06:52]} 7. Nd4 {[%emt 0:03:39][%cal Bf3d4,Bd4b5,Bb5c7][%mdl 32] [#]} Qh4+ $146 {[%emt 0:03:04]} ({Predecessor:} 7... Nc6 8. Qxg4 d5 9. Qxh5 Nxd4 10. Bd3 Rg8 11. O-O Bg4 12. Qxh7 Rg7 13. Qh8 Qg5 14. h4 Qxe5 15. Rf2 O-O-O {0-1 (15) Tanski,I-Koudelka,I corr 1997}) 8. Kd1 {[%emt 0:00:11] The position is equal.} Nc6 {[%emt 0:32:22]} 9. Ndb5 {[%emt 0:06:20]} Kd8 {[%emt 0:00:13] Threatens to win with ...a6.} 10. Nd5 {[%emt 0:16:10]} a6 {[%emt 0:00:51]} (10... Ng3 11. Qf2 $16) (10... f3 $11 {remains equal.} 11. Qe3 (11. gxf3 gxf3 12. Qxf3 Nxe5 $11) 11... Be7) 11. Nbxc7 $16 {[%emt 0:04:07]} Ra7 {[%emt 0:00:15][%cal Ob7b6] [#]} 12. Qe4 $2 {[%emt 0:30:07] White is more active.} (12. g3 $1 $16 {[%cal Rg3h4]} Nxg3 13. Qf2) 12... Ng3 {[%emt 0:17:14][%mdl 8192] [#] Loses the game.} (12... b6 $15 {stays ahead.} 13. g3 fxg3) 13. hxg3 $1 $18 {[%emt 0:03:42]} Qxh1 {[%emt 0:01:20]} 14. Qxf4 {[%emt 0:00:16] aiming for Qf6+. Really sharp!} Qh6 {[%emt 0:04:01] [#]} (14... f5) 15. Qf2 $1 {[%emt 0:00:30]} ({Less strong is} 15. Qxf7 Be7 16. d3 Qf8 17. Qxf8+ Rxf8 $16) 15... d6 {[%emt 0:08:11]} 16. d3 {[%emt 0:01:35]} ({Not} 16. Qxf7 Be7 17. d3 Qg6 18. Qxg6 (18. e6 Rf8 $11) 18... hxg6 $16) 16... Qg6 {[%emt 0:00:31]} 17. Qb6 {[%emt 0:00:32]} Qf5 {[%emt 0:02:34] [#] Inhibits Bg5+.} 18. Bg5+ $1 {[%emt 0:04:36][%mdl 512]} Be7 {[%emt 0:03:34]} (18... Qxg5 19. Ne6+) 19. Bxe7+ {[%emt 0:01:26]} Nxe7 {[%emt 0:00:57]} 20. Ne6+ {[%emt 0:00:50][%mdl 64] Discovered Attack (Double check). Pair of Knights! White mates.} Kd7 {[%emt 0:00:17]} 21. Qxd6+ {[%emt 0:00:04]} Ke8 {[%emt 0:00:05]} 22. Qxe7# {[%emt 0:00:04] Weighted Error Value: White=0.28 (precise) /Black=1.11} 1-0

[Event "93rd German Championship 2022"]
[Site "Magdeburg"]
[Date "2022.08.16"]
[Round "3.3"]
[White "Wachinger, Nikolas"]
[Black "Langheinrich, Ferenc"]
[Result "0-1"]
[ECO "B30"]
[WhiteElo "2437"]
[BlackElo "2357"]
[Annotator "TA"]
[PlyCount "78"]
[EventDate "2022.08.14"]
[EventType "swiss"]
[EventCountry "GER"]
[SourceTitle "playchess.com"]
[Source "ChessBase"]
[SourceQuality "1"]
[TimeControl "40/5400+30:1800+30"]

{[%evp 9,78,14,64,48,51,20,14,-1,34,34,40,55,78,18,84,67,228,215,211,217,236,251,250,250,261,254,258,260,293,267,316,305,313,302,308,264,250,263,244,274,261,153,176,118,194,186,234,1,17,-266,-262,-291,-282,-261,-162,-173,-8,-8,0,-582,-582,-582,-581,-581,-579,-29989,-29988,-29990,-29989,-29989,-29984]} 1. e4 {[%emt 0:02:02]} c5 {[%emt 0:00:10]} 2. Nf3 {[%emt 0:00:30]} Nc6 {[%emt 0:00:08]} 3. Bb5 {[%emt 0:00:48]} e6 {[%emt 0:00:11]} 4. O-O {[%emt 0:00:49]} Nge7 {[%emt 0:00:21]} 5. Re1 {[%emt 0:00:27]} h6 {[%emt 0:03:01]} (5... a6 $11 6. Bxc6 Nxc6) 6. c3 $14 {[%emt 0:06:06] B30: Sicilian: 2...Nc6 3 Bb5, lines without ...g6.} a6 {[%emt 0:00:15]} 7. Bf1 {[%emt 0:08:22]} d5 {[%emt 0:00:20] [#]} 8. d3 $146 {[%emt 0:00:46] The position is equal.} ({Predecessor:} 8. exd5 Nxd5 9. d3 Be7 10. g3 O-O 11. Bg2 b6 12. Nbd2 Bb7 13. Nc4 Bf6 14. Qc2 {1-0 (83) Dragnev,V (2535)-Blanco Acevedo,C (2304) Warsaw 2021}) 8... g5 {[%emt 0:19:40]} 9. exd5 {[%emt 0:05:58]} Nxd5 {[%emt 0:00:10]} 10. Nbd2 {[%emt 0:03:09]} Bg7 {[%emt 0:06:56] And now ...g4 would win.} 11. Nc4 {[%emt 0:08:53]} ({White should try} 11. Ne4 $16) 11... Nde7 {[%emt 0:21:22]} (11... b5 $11 {remains equal.}) 12. a4 $16 {[%emt 0:04:14][%cal Ba2a4,Ba4a5][%mdl 32]} Ng6 $2 {[%emt 0:08:55]} (12... Na5 $14) 13. a5 $18 {[%emt 0:03:57]} O-O {[%emt 0:00:28]} 14. Be3 {[%emt 0:01:25]} e5 {[%emt 0:10:31]} 15. Bxc5 {[%emt 0:02:16]} Re8 {[%emt 0:00:04]} 16. Nfd2 {[%emt 0:04:58][%cal Bf3d2,Bd2e4,Be4c5][%mdl 32]} Bf8 {[%emt 0:06:25]} 17. Ne4 {[%emt 0:05:45]} Bxc5 {[%emt 0:03:14]} 18. Nxc5 {[%emt 0:00:11]} Kg7 {[%emt 0:01:04]} 19. g3 {[%emt 0:01:33]} h5 {[%emt 0:05:28]} 20. Bg2 {[%emt 0:10:04]} ({Much less strong is} 20. Qxh5 $6 g4 $18) 20... h4 {[%emt 0:00:35]} 21. Nb6 {[%emt 0:02:59]} Rb8 {[%emt 0:00:29]} 22. Nxa6 {[%emt 0:06:06]} bxa6 {[%emt 0:00:21]} 23. Bxc6 {[%emt 0:00:05]} hxg3 {[%emt 0:01:34]} 24. hxg3 {[%emt 0:03:34]} Rh8 {[%emt 0:01:36]} 25. Qf3 {[%emt 0:05:35]} (25. d4 $18) 25... Be6 {[%emt 0:00:16]} 26. b4 {[%emt 0:04:46]} ({White should play} 26. Qe3 $18) 26... g4 {[%emt 0:00:42]} (26... Qd6 $16 {was worth a try.} 27. Bb7 Ne7) 27. Qe3 {[%emt 0:00:51]} Rh5 {[%emt 0:02:54]} 28. Kf1 $2 {[%emt 0:02:38]} ({Better is} 28. Bg2 $18) 28... f5 $11 {[%emt 0:00:29]} 29. Ke2 $2 {[%emt 0:04:28][%mdl 8192]} (29. Nc4 $11 f4 30. gxf4 exf4 31. Qa7+ (31. Qxe6 f3) 31... Bf7 32. Ke2) 29... f4 $19 {[%emt 0:01:09]} 30. gxf4 {[%emt 0:00:01] Hoping for Kd2.} Rh3 {[%emt 0:00:54] The board is on fire.} 31. Qe4 {[%emt 0:00:39] Strongly threatening f5.} Nxf4+ {[%emt 0:01:31]} 32. Kf1 {[%emt 0:00:09] [#]} Rh5 {[%emt 0:00:52]} (32... Rh1+ $1 $19 {[%mdl 512]} 33. Qxh1 Qxd3+ 34. Kg1 Nh3+ 35. Qxh3 (35. Kg2 $2 Rf8 $19) 35... Qxh3 36. Rxe5 Qxc3) 33. Re3 $1 $11 {[%emt 0:00:35]} Qh4 {[%emt 0:00:30]} 34. Ke1 $2 {[%emt 0:00:53][%mdl 8192]} (34. Rg3 $11) 34... Rf8 $19 {[%emt 0:00:36] ...Qh2 is the strong threat.} 35. Rg3 {[%emt 0:00:18]} Qh2 {[%emt 0:01:33][%cal Of4d3] aiming for ...Nxd3+!} 36. Qe3 {[%emt 0:00:58] [#] Black must now prevent Rd1.} Nxd3+ $1 {[%emt 0:00:06][%mdl 576] Deflection} 37. Qxd3 {[%emt 0:00:46]} (37. Kd2 e4) 37... Qxf2+ {[%emt 0:00:35] Black mates.} 38. Kd1 {[%emt 0:00:01]} Rh2 {[%emt 0:01:24]} 39. Bg2 {[%emt 0:01:51]} Qg1+ {[%emt 0:01:15] Quite a comeback for Black.  Weighted Error Value: White=0.82/Black=0.29 (precise)} 0-1

[Event "93rd German Championship 2022"]
[Site "Magdeburg"]
[Date "2022.08.16"]
[Round "3.4"]
[White "Miller, Eduard"]
[Black "Carlstedt, Jonathan"]
[Result "0-1"]
[ECO "D33"]
[WhiteElo "2350"]
[BlackElo "2446"]
[Annotator "TA"]
[PlyCount "108"]
[EventDate "2022.08.14"]
[EventType "swiss"]
[EventCountry "GER"]
[SourceTitle "playchess.com"]
[Source "ChessBase"]
[SourceQuality "1"]
[TimeControl "40/5400+30:1800+30"]

{[%evp 16,108,36,31,35,37,43,39,45,18,26,22,20,28,54,44,44,44,45,40,43,29,42,33,54,60,45,16,17,7,7,3,6,-13,0,-147,-47,-195,-99,-325,-92,-83,-83,-63,-84,-91,-68,-130,-136,-121,-86,-187,-194,-167,-175,-202,-198,-211,-189,-227,-98,-193,-201,-175,-177,-197,-204,-187,-179,-175,-170,-268,-281,-263,-261,-286,-286,-279,-247,-279,-263,-419,-418,-539,-516,-1078,-954,-29984,-29985,-29985,-29986,-29982,-29983,-29983,-29985]} 1. d4 {[%emt 0:00:03]} d5 {[%emt 0:00:25]} 2. c4 {[%emt 0:00:05]} e6 {[%emt 0:00:07]} 3. Nc3 {[%emt 0:00:04]} c5 {[%emt 0:00:13]} 4. cxd5 {[%emt 0:01:22]} exd5 {[%emt 0:00:06]} 5. Nf3 {[%emt 0:01:03][%cal Bg1f3,Bf3d4,Bd4b3][%mdl 32]} Nf6 {[%emt 0:00:19]} 6. g3 {[%emt 0:01:34]} Nc6 {[%emt 0:00:07]} 7. Bg2 {[%emt 0:00:07]} cxd4 {[%emt 0:00:07] The modern move.} 8. Nxd4 {[%emt 0:01:55]} Bc5 {[%emt 0:00:17]} 9. Nb3 {[%emt 0:09:28][%csl LRc5,LRd5]} Bb6 {[%emt 0:00:16] D33: Tarrasch Defence: 6 g3 sidelines.} 10. O-O {[%emt 0:07:39]} ({Reject} 10. Bxd5 Nb4 11. Bf3 Qxd1+ 12. Kxd1 Ng4 13. Bxg4 Bxg4 $11) 10... d4 {[%emt 0:00:13]} 11. Na4 {[%emt 0:08:25]} O-O {[%emt 0:00:19] White is slightly better.} 12. Nxb6 {[%emt 0:10:22]} axb6 {[%emt 0:00:07]} 13. Bg5 {[%emt 0:17:32]} Re8 {[%emt 0:00:18]} 14. Re1 {[%emt 0:23:04]} h6 {[%emt 0:00:20]} 15. Bxc6 {[%emt 0:01:07]} bxc6 {[%emt 0:00:07]} 16. Bxf6 {[%emt 0:00:03]} Qxf6 {[%emt 0:00:07]} 17. Qxd4 {[%emt 0:00:07]} Qd8 {[%emt 0:00:05]} 18. Qc3 {[%emt 0:04:55]} c5 {[%emt 0:01:05]} 19. Rad1 {[%emt 0:03:14]} Qc7 {[%emt 0:00:16]} 20. a3 {[%emt 0:00:09]} Ba6 {[%emt 0:02:07] [#]} 21. Rd2 $146 {[%emt 0:01:23]} ({Predecessor:} 21. Nc1 Rad8 22. Qc2 Qe5 23. Rd2 h5 24. Red1 Rxd2 25. Rxd2 h4 26. Qa4 h3 27. Kf1 {1-0 (38) Van Wely,L (2613)-Hracek,Z (2570) Germany 2022}) 21... Re7 {[%emt 0:04:47]} 22. Nc1 {[%emt 0:01:59]} Rae8 {[%emt 0:01:02]} 23. Nd3 {[%emt 0:00:17]} g5 {[%emt 0:04:52] Inhibits Nf4.} 24. Qf6 {[%emt 0:02:02]} Re6 {[%emt 0:00:40][%mdl 1024] Black has compensation.} 25. Qf5 {[%emt 0:01:10]} (25. Qc3 $11 {was the only way to keep the balance.}) 25... Bc8 {[%emt 0:00:29]} ({Better is} 25... Qd6 $17 {White must now prevent ...Rf6.} 26. b3 Re4) 26. e4 {[%emt 0:02:10]} ({White should try} 26. Qd5 $1 $15) 26... Qc6 {[%emt 0:04:02]} (26... Qd8 $19 {[%cal Oe6e4] Hoping for ...Rxe4!} 27. b3 Bb7) 27. e5 {[%emt 0:00:19]} (27. Qf3 $17) 27... Bb7 $2 {[%emt 0:07:47]} (27... R6e7 $19 28. Qe4 Qxe4 29. Rxe4 Rd8) 28. f3 $17 {[%emt 0:00:13]} Qxf3 {[%emt 0:06:00]} 29. Qxf3 {[%emt 0:00:04]} Bxf3 {[%emt 0:00:05]} 30. Kf2 {[%emt 0:00:36]} Bb7 {[%emt 0:00:22] Black is more active.} 31. Rde2 {[%emt 0:01:18]} (31. b3 $15) 31... Ba6 $36 {[%emt 0:05:43][%mdl 2048] Black is really pushing.} 32. Rd2 {[%emt 0:00:17]} Kg7 {[%emt 0:06:51]} 33. g4 {[%emt 0:00:51]} (33. Rdd1 $17 {is a better defense.}) 33... Rd8 $19 {[%emt 0:00:15]} 34. Red1 {[%emt 0:00:14]} Rd4 {[%emt 0:00:16]} 35. Kg3 {[%emt 0:00:46]} Re4 {[%emt 0:01:49]} 36. Rf2 {[%emt 0:01:13]} Bb7 {[%emt 0:02:12]} 37. Re1 {[%emt 0:00:23] Prevents Re3+.} Re7 {[%emt 0:08:57]} (37... Rxe1 $1 $19 {and Black stays clearly on top.} 38. Nxe1 Rxe5) 38. Rf6 {[%emt 0:01:12] [#]} (38. Rfe2 $17 Rd4 39. Re3) 38... Rd7 $1 {[%emt 0:03:47]} 39. Rd6 {[%emt 0:00:40] [#]} Rxd6 {[%emt 0:00:56]} ({Weaker is} 39... Rd4 40. Rxd7 Rxd7 41. Re3 $17) 40. exd6 {[%emt 0:00:05][%mdl 4096] Endgame KRB-KRN} Rd4 {[%emt 0:00:57][%csl LRd3,LRd6]} 41. Re3 {[%emt 0:11:22]} Rxd6 {[%emt 0:02:56]} 42. h4 {[%emt 0:03:25]} Ba6 {[%emt 0:09:46]} 43. Nf2 {[%emt 0:01:04]} (43. Ne1 $142) 43... gxh4+ {[%emt 0:00:23]} 44. Kxh4 {[%emt 0:00:56]} Rd2 $1 {[%emt 0:00:09][%csl LRb2,LRf2]} 45. Ne4 {[%emt 0:02:15]} Rxb2 {[%emt 0:02:05]} 46. Nd6 {[%emt 0:00:23]} Bf1 {[%emt 0:01:38]} 47. Re1 {[%emt 0:03:23]} Bd3 {[%emt 0:00:51]} 48. Re7 {[%emt 0:01:36]} (48. g5 {keeps fighting.}) 48... Kf6 {[%emt 0:04:34]} 49. Rc7 {[%emt 0:02:34]} Ke5 {[%emt 0:03:57]} 50. Nc8 {[%emt 0:01:10]} (50. Ne8 $142 Bc4 51. Rc6) 50... f5 {[%emt 0:06:53] ( -> ...f4)} 51. gxf5 {[%emt 0:03:28]} Kf4 {[%emt 0:00:23][%cal Rb2h2] Black mates.} 52. Kh5 {[%emt 0:00:17]} Bxf5 {[%emt 0:00:12][%cal Rb2h2]} 53. Kxh6 {[%emt 0:00:05]} Rh2+ {[%emt 0:00:08]} 54. Kg7 {[%emt 0:00:04]} Rh7+ {[%emt 0:00:08] Weighted Error Value: White=0.68/Black=0.19 (very precise)} 0-1

[Event "93rd German Championship 2022"]
[Site "Magdeburg"]
[Date "2022.08.16"]
[Round "3.5"]
[White "Becker, Michael"]
[Black "Stricker, Florian"]
[Result "0-1"]
[ECO "C00"]
[WhiteElo "2270"]
[BlackElo "2182"]
[Annotator "TA"]
[PlyCount "60"]
[EventDate "2022.08.14"]
[EventType "swiss"]
[EventCountry "GER"]
[SourceTitle "playchess.com"]
[Source "ChessBase"]
[SourceQuality "1"]
[TimeControl "40/5400+30:1800+30"]

{[%evp 9,60,-5,27,31,0,-18,-8,-13,0,3,3,-19,-22,-24,-27,-29,-16,-43,-54,-69,-77,-93,-102,-107,-93,-93,-80,-137,-138,-123,-108,-164,-162,-171,-189,-186,-183,-146,-156,-131,-112,-118,-120,-226,-208,-184,-113,-214,-219,-160,-148,-29997,-29998]} 1. e4 {[%emt 0:00:08]} e6 {[%emt 0:00:06]} 2. d3 {[%emt 0:00:20]} d5 {[%emt 0:00:07]} 3. Qe2 {[%emt 0:00:27]} Nc6 {[%emt 0:00:09]} 4. Nf3 {[%emt 0:00:19]} Nge7 {[%emt 0:00:08]} 5. g3 {[%emt 0:01:08] [#]} f6 $146 {[%emt 0:00:05]} ({Predecessor:} 5... e5 6. Bg2 Bg4 7. c3 dxe4 8. dxe4 Qd7 9. h3 Bh5 10. O-O Rd8 11. Re1 Qc8 {½-½ (48) Hasangatin,R (2479)-Holt,C (2553) Chess.com INT 2022}) 6. Bg2 {[%emt 0:00:46] C00: French: Unusual White 2nd moves.} e5 {[%emt 0:00:10]} 7. O-O {[%emt 0:01:02]} Bg4 {[%emt 0:00:06]} 8. c3 {[%emt 0:02:28] Inhibits Nd4. The position is equal.} d4 {[%emt 0:01:28]} (8... Qd7 {is interesting.} 9. h3 Bxh3 10. Nxe5 Nxe5 11. Qh5+ g6) 9. h3 {[%emt 0:00:59]} Be6 {[%emt 0:01:14]} 10. cxd4 {[%emt 0:01:20]} Nxd4 {[%emt 0:00:57]} 11. Nxd4 {[%emt 0:03:31]} Qxd4 {[%emt 0:00:12]} 12. Be3 {[%emt 0:10:21]} Qd7 {[%emt 0:00:21]} 13. Rd1 {[%emt 0:00:13]} Nc6 {[%emt 0:10:30] Prevents d4.} 14. Nc3 {[%emt 0:02:54]} O-O-O {[%emt 0:04:01]} 15. Kh2 {[%emt 0:02:33]} Nd4 {[%emt 0:11:21] Inhibits Nb5.} 16. Bxd4 {[%emt 0:00:36]} exd4 {[%emt 0:00:18]} 17. Nd5 {[%emt 0:01:06]} Bd6 {[%emt 0:02:58]} 18. Qf3 {[%emt 0:07:53]} ({Better is} 18. Nf4) 18... Bxd5 $17 {[%emt 0:28:29]} 19. exd5 {[%emt 0:00:16]} h5 {[%emt 0:01:00] Black is more active.} 20. Kg1 {[%emt 0:11:34] [#]} (20. Qe4 $17) 20... f5 $1 $19 {[%emt 0:05:10]} 21. Re1 {[%emt 0:01:47]} g5 {[%emt 0:08:11]} 22. Re6 {[%emt 0:01:34] [#]} Rdf8 {[%emt 0:04:54]} 23. Rae1 {[%emt 0:03:21]} g4 {[%emt 0:01:24]} 24. Qe2 {[%emt 0:05:00]} Qf7 {[%emt 0:08:16]} 25. hxg4 {[%emt 0:07:12]} hxg4 {[%emt 0:00:23]} 26. a3 {[%emt 0:00:27]} (26. Qc2 $17 f4 27. gxf4 (27. Rxd6 $2 f3 $19) 27... Qxf4 28. Kf1) 26... Kb8 {[%emt 0:05:36]} 27. b4 {[%emt 0:01:01]} b6 {[%emt 0:02:54]} ({Not} 27... f4 28. Qxg4 fxg3 29. f3 $17) (27... a6 $19 {And now ...Qh5 would win.} 28. Kf1 f4 29. gxf4 Bxf4) 28. Qb2 {[%emt 0:14:47]} (28. Kf1 $17) 28... f4 {[%emt 0:01:44]} 29. gxf4 {[%emt 0:00:12]} Qxf4 {[%emt 0:00:14]} 30. R1e2 $2 {[%emt 0:00:13][%mdl 8192] [#]} (30. Kf1 $17) 30... Rh1+ $3 {[%emt 0:00:32][%mdl 512] Weighted Error Value: White=0.43/Black=0.08 (flawless)} 0-1

[Event "93rd German Championship 2022"]
[Site "Magdeburg"]
[Date "2022.08.16"]
[Round "3.6"]
[White "Krassowizkij, Jaroslaw"]
[Black "Arnold, Max"]
[Result "1-0"]
[ECO "D30"]
[WhiteElo "2428"]
[BlackElo "2350"]
[Annotator "TA"]
[PlyCount "111"]
[EventDate "2022.08.14"]
[EventType "swiss"]
[EventCountry "GER"]
[SourceTitle "playchess.com"]
[Source "ChessBase"]
[SourceQuality "1"]
[TimeControl "40/5400+30:1800+30"]

{[%evp 9,111,31,11,22,35,7,14,8,22,16,15,15,9,12,24,29,25,16,31,27,31,32,37,26,45,8,130,122,124,48,52,53,55,54,56,51,64,59,53,52,75,72,99,38,67,0,0,0,0,0,0,0,8,8,8,8,46,46,46,0,0,0,199,162,205,207,239,239,220,228,239,218,487,384,537,529,486,492,582,568,545,524,456,0,473,0,452,366,484,491,499,495,506,471,1426,1163,2110,1837,1904,1114,29991,29992,29992,29993]} 1. d4 {[%emt 0:00:03]} d5 {[%emt 0:00:18]} 2. c4 {[%emt 0:00:05]} e6 {[%emt 0:00:08]} 3. Nf3 {[%emt 0:00:04]} a6 {[%emt 0:00:20]} 4. Nbd2 {[%emt 0:00:46]} Nf6 {[%emt 0:01:11]} 5. g3 {[%emt 0:04:15]} c5 {[%emt 0:02:07]} 6. Bg2 {[%emt 0:07:26] D30: Queen's Gambit Declined: Systems without Nc3.} Nc6 {[%emt 0:00:29]} 7. cxd5 {[%emt 0:05:08]} exd5 {[%emt 0:00:27]} 8. O-O {[%emt 0:02:53] The position is equal.} Be7 {[%emt 0:03:32]} 9. dxc5 {[%emt 0:07:48]} Bxc5 {[%emt 0:00:25] [#]} 10. a3 $146 {[%emt 0:00:03]} ({Predecessor:} 10. Nb3 Ba7 11. Nbd4 O-O 12. b3 Re8 13. Bb2 Qd6 14. Rc1 Bg4 15. h3 Bd7 16. e3 {½-½ (50) Joergens,M (1984)-Berndt,J (2057) Nordrheinwestfalen 2019}) 10... O-O {[%emt 0:01:40]} 11. b4 {[%emt 0:00:20]} Ba7 {[%emt 0:01:34]} 12. Bb2 {[%emt 0:00:18]} Re8 {[%emt 0:12:18]} 13. Rc1 {[%emt 0:10:03]} Qe7 {[%emt 0:08:42]} 14. e3 {[%emt 0:03:42]} Bg4 {[%emt 0:04:19]} 15. h3 {[%emt 0:08:37]} Bf5 {[%emt 0:19:09]} 16. Nb3 {[%emt 0:08:29]} Be4 {[%emt 0:01:50]} 17. Nc5 {[%emt 0:02:11]} a5 {[%emt 0:02:53]} (17... Bxc5 $11 18. Bxf6 (18. Rxc5 Nd7 $11) (18. bxc5 h6 $11) 18... Qxf6 19. Rxc5 b6) 18. Bxf6 {[%emt 0:02:47]} Qxf6 {[%emt 0:02:09]} 19. b5 {[%emt 0:01:39]} ({White should try} 19. Nxe4 $16 dxe4 20. Nd2) 19... Bxc5 $14 {[%emt 0:04:09]} 20. Rxc5 {[%emt 0:00:32]} Qd6 {[%emt 0:02:58]} 21. Rc3 {[%emt 0:06:59]} Qf6 {[%emt 0:08:28]} 22. Rc1 {[%emt 0:06:16]} Ne5 {[%emt 0:06:11]} 23. Nxe5 {[%emt 0:00:06]} Qxe5 {[%emt 0:01:45]} 24. Qa4 {[%emt 0:09:15]} h5 {[%emt 0:04:11][%cal Oh5h4]} 25. Rfd1 {[%emt 0:03:22]} h4 {[%emt 0:00:41]} 26. g4 {[%emt 0:00:06]} ({Stronger than} 26. gxh4 Re6 27. Bxe4 dxe4 $15) (26. Bxe4 $16 dxe4 27. g4) 26... Qb2 {[%emt 0:04:32]} 27. Bxe4 {[%emt 0:03:37]} ({Better is} 27. Rc7 $14) 27... Rxe4 $11 {[%emt 0:00:40]} 28. Qc2 {[%emt 0:00:00]} Qxb5 {[%emt 0:00:35]} 29. Rb1 {[%emt 0:01:12]} Qc6 {[%emt 0:00:28]} 30. Qb3 {[%emt 0:00:35][%csl LRb7,LRd5]} Ra4 {[%emt 0:01:51][%cal Ob7b5]} 31. Qxb7 {[%emt 0:02:03]} Qxb7 {[%emt 0:02:03]} 32. Rxb7 {[%emt 0:00:05][%mdl 4096] Endgame KRR-KRR} Rd8 {[%emt 0:02:53]} 33. Rd3 {[%emt 0:00:05]} Rc4 {[%emt 0:00:34]} 34. Ra7 {[%emt 0:00:22]} (34. Kg2 $14 {might be stronger.}) 34... a4 {[%emt 0:00:08]} 35. Rd4 {[%emt 0:00:18]} Rc2 $2 {[%emt 0:01:49] White stays focused until the end.} (35... Rxd4 $11 {and Black has nothing to worry.} 36. exd4 Rb8) 36. Raxa4 {[%emt 0:02:56]} (36. Rdxa4 Rc4 37. g5 g6) 36... Rd6 {[%emt 0:00:26] [#]} 37. g5 $1 {[%emt 0:00:55]} f5 {[%emt 0:00:36]} 38. Rf4 {[%emt 0:01:12]} ({Don't take} 38. Rxh4 Rg6 39. Ra8+ Kf7 40. Ra7+ Kg8) 38... Kh7 {[%emt 0:00:28]} 39. Rxf5 {[%emt 0:00:12]} ({But not} 39. Rxh4+ $6 Kg6 40. Rhd4 Kxg5 41. h4+ Kf6 $16) 39... Kg6 {[%emt 0:00:27]} 40. Re5 {[%emt 0:01:23]} Ra2 $2 {[%emt 0:00:35]} (40... Rc4 {was worth a try.} 41. Rxc4 dxc4) 41. Rxh4 $18 {[%emt 0:31:56]} Rxa3 {[%emt 0:30:23]} 42. Rd4 {[%emt 0:00:17]} Ra5 {[%emt 0:00:00]} 43. Kg2 {[%emt 0:00:00]} Kh5 {[%emt 0:00:00]} 44. Kg3 {[%emt 0:00:00]} Rd8 {[%emt 0:00:00]} 45. Rg4 {[%emt 0:00:00] [#] g6+ would kill now.} Kg6 {[%emt 0:00:00]} 46. Rd4 {[%emt 0:00:00]} Kh5 $1 {[%emt 0:00:00]} 47. Kg2 $2 {[%emt 0:00:00]} (47. f4 $18) 47... Rc5 $2 {[%emt 0:00:00][%mdl 8192]} (47... Rd6 $1 $11 48. Kg3 Rd7) 48. h4 {[%emt 0:00:00]} Rd7 {[%emt 0:00:00]} 49. Kg3 {[%emt 0:00:00]} Rd8 {[%emt 0:00:00]} 50. Re7 {[%emt 0:00:00]} Rg8 {[%emt 0:00:00]} 51. Rd7 {[%emt 0:00:00]} Rb5 {[%emt 0:00:00]} (51... Rc1 $142 52. R7xd5 Re8) 52. R7xd5 {[%emt 0:00:00]} Rxd5 {[%emt 0:00:00]} 53. Rxd5 {[%emt 0:00:00] Black must now prevent Rd7.} g6 {[%emt 0:00:00]} 54. f4 {[%emt 0:00:00] White wants to mate with Kf3.} Re8 {[%emt 0:00:00]} 55. Kf3 {[%emt 0:00:00]} Kxh4 {[%emt 0:00:00]} 56. Rd1 {[%emt 0:00:00] Weighted Error Value: White=0.28 (precise) /Black=0.60} 1-0